fUST/lending_fUST_20251129
["ID","MTS","AMOUNT","RATE_DAILY","PERIOD"]
[395067986,1764397861532,-472.77002781,0.00014246,2]
[395067987,1764397861542,-500.0,0.00014246,2]
[395067988,1764397861551,-500.0,0.00014246,2]
[395067989,1764397861560,-500.0,0.00014246,2]
[395067990,1764397861570,-500.0,0.00014246,2]
[395067991,1764397861579,-500.0,0.00014246,2]
[395067992,1764397861588,-500.0,0.00014246,2]
[395067993,1764397861598,-587.4,0.00014246,2]
[395067994,1764397861607,-500.0,0.00014246,2]
[395067995,1764397861616,-500.0,0.00014246,2]
[395067996,1764397861627,-738.75,0.00014246,2]
[395067997,1764397861637,-500.0,0.00014246,2]
[395067998,1764397861646,-500.0,0.00014246,2]
[395067999,1764397861656,-500.0,0.00014246,2]
[395068000,1764397861666,-500.0,0.00014246,2]
[395068001,1764397861676,-210.43703268,0.00014246,2]
[395068002,1764397861687,-596.16,0.00014246,2]
[395068003,1764397861698,-500.0,0.00014246,2]
[395068004,1764397861708,-500.0,0.00014246,2]
[395068005,1764397861718,-574.22,0.00014246,2]
[395068006,1764397861729,-500.0,0.00014246,2]
[395068007,1764397861738,-500.0,0.00014246,2]
[395068008,1764397861748,-500.0,0.00014246,2]
[395068009,1764397861757,-305.06865933,0.00014246,2]
[395068010,1764397861768,-581.68,0.00014246,2]
[395068011,1764397861777,-500.0,0.00014246,2]
[395068012,1764397861787,-556.95,0.00014246,2]
[395068013,1764397861797,-564.08,0.00014246,2]
[395068014,1764397861806,-540.78,0.00014246,2]
[395068015,1764397861815,-500.0,0.00014246,2]
[395068016,1764397861825,-689.25,0.00014246,2]
[395068017,1764397861834,-500.0,0.00014246,2]
[395068018,1764397861843,-500.0,0.00014246,2]
[395068019,1764397861853,-500.0,0.00014246,2]
[395068020,1764397861862,-340.15268798,0.00014246,2]
[395068021,1764397861873,-848.59,0.00014246,2]
[395068022,1764397861883,-500.0,0.00014246,2]
[395068023,1764397861892,-1164.8,0.00014246,2]
[395068024,1764397861901,-500.0,0.00014246,2]
[395068025,1764397861911,-500.0,0.00014246,2]
[395068026,1764397861920,-500.0,0.00014246,2]
[395068027,1764397861929,-1236.56,0.00014246,2]
[395068028,1764397861938,-500.0,0.00014246,2]
[395068029,1764397861947,-5933.31,0.00014246,2]
[395068030,1764397861956,-3090.35,0.00014246,2]
[395068031,1764397861965,-500.0,0.00014246,2]
[395068032,1764397861975,-529.77,0.00014246,2]
[395068033,1764397861984,-500.0,0.00014246,2]
[395068034,1764397861994,-1214.71,0.00014246,2]
[395068035,1764397862003,-500.0,0.00014246,2]
[395068036,1764397862012,-652.25,0.00014246,2]
[395068037,1764397862021,-1897.31,0.00014246,2]
[395068038,1764397862030,-500.0,0.00014246,2]
[395068039,1764397862039,-990.53,0.00014246,2]
[395068040,1764397862048,-285.88949169,0.00014246,2]
[395068041,1764397862058,-500.0,0.00014246,2]
[395068042,1764397862067,-500.0,0.00014246,2]
[395068043,1764397862076,-500.0,0.00014246,2]
[395068044,1764397862085,-500.0,0.00014246,2]
[395068045,1764397862094,-778.35,0.00014246,2]
[395068046,1764397862103,-500.0,0.00014246,2]
[395068047,1764397862112,-1618.79,0.00014246,2]
[395068048,1764397862123,-500.0,0.00014246,2]
[395068049,1764397862131,-592.68,0.00014246,2]
[395068050,1764397862140,-899.31,0.00014246,2]
[395068051,1764397862150,-940.19,0.00014246,2]
[395068052,1764397862159,-500.0,0.00014246,2]
[395068053,1764397862168,-500.0,0.00014246,2]
[395068054,1764397862177,-500.0,0.00014246,2]
[395068055,1764397862187,-1484.2,0.00014246,2]
[395068056,1764397862197,-500.0,0.00014246,2]
[395068057,1764397862206,-596.04,0.00014246,2]
[395068058,1764397862215,-2800.32,0.00014246,2]
[395068059,1764397862228,-178.86081532,0.00014246,2]
[395068060,1764397862238,-500.0,0.00014246,2]
[395068061,1764397862248,-500.0,0.00014246,2]
[395068062,1764397862258,-500.0,0.00014246,2]
[395068063,1764397862268,-500.0,0.00014246,2]
[395068064,1764397862277,-500.0,0.00014246,2]
[395068065,1764397862287,-552.21,0.00014246,2]
[395068066,1764397862296,-500.0,0.00014246,2]
[395068067,1764397862308,-500.0,0.00014246,2]
[395068068,1764397862317,-1559.52,0.00014246,2]
[395068069,1764397862326,-500.0,0.00014246,2]
[395068070,1764397862336,-522.61,0.00014246,2]
[395068071,1764397862349,-797.75,0.00014246,2]
[395068072,1764397862358,-513.48,0.00014246,2]
[395068073,1764397862367,-413.2323002,0.00014246,2]
[395068074,1764397862378,-526.07,0.00014246,2]
[395068075,1764397862387,-500.0,0.00014246,2]
[395068076,1764397862396,-500.0,0.00014246,2]
[395068077,1764397862406,-1335.25,0.00014246,2]
[395068078,1764397862415,-1099.74,0.00014246,2]
[395068079,1764397862424,-3619.92,0.00014246,2]
[395068080,1764397862433,-500.0,0.00014246,2]
[395068081,1764397862443,-500.0,0.00014246,2]
[395068082,1764397862452,-500.0,0.00014246,2]
[395068083,1764397862462,-2405.03,0.00014246,2]
[395068084,1764397862471,-500.0,0.00014246,2]
[395068085,1764397862481,-500.0,0.00014246,2]
[395068086,1764397862490,-7651.96,0.00014246,2]
[395068087,1764397862500,-500.0,0.00014246,2]
[395068088,1764397862509,-500.0,0.00014246,2]
[395068089,1764397862519,-500.0,0.00014246,2]
[395068090,1764397862529,-649.66,0.00014246,2]
[395068091,1764397862539,-1908.06,0.00014246,2]
[395068092,1764397862548,-500.0,0.00014246,2]
[395068093,1764397862558,-500.0,0.00014246,2]
[395068094,1764397862568,-500.0,0.00014246,2]
[395068095,1764397862577,-662.97,0.00014246,2]
[395068096,1764397862590,-1158.74,0.00014246,2]
[395068097,1764397862600,-500.0,0.00014246,2]
[395068098,1764397862609,-500.0,0.00014246,2]
[395068099,1764397862619,-1514.35,0.00014246,2]
[395068100,1764397862629,-642.19,0.00014246,2]
[395068101,1764397862639,-500.0,0.00014246,2]
[395068102,1764397862648,-500.0,0.00014246,2]
[395068103,1764397862657,-500.0,0.00014246,2]
[395068104,1764397862667,-3678.73,0.00014246,2]
[395068105,1764397862676,-6008.98,0.00014246,2]
[395068106,1764397862686,-500.0,0.00014246,2]
[395068107,1764397862695,-514.33,0.00014246,2]
[395068108,1764397862705,-776.58,0.00014246,2]
[395068109,1764397862714,-500.0,0.00014246,2]
[395068110,1764397862724,-500.0,0.00014246,2]
[395068111,1764397862734,-500.0,0.00014246,2]
[395068112,1764397862744,-3777.58,0.00014246,2]
[395068113,1764397862753,-980.94,0.00014246,2]
[395068114,1764397862762,-500.0,0.00014246,2]
[395068115,1764397862772,-500.0,0.00014246,2]
[395068116,1764397862781,-500.0,0.00014246,2]
[395068117,1764397862790,-907.07,0.00014246,2]
[395068118,1764397862800,-500.0,0.00014246,2]
[395068119,1764397862810,-1083.76,0.00014246,2]
[395068120,1764397862821,-604.62,0.00014246,2]
[395068121,1764397862831,-500.0,0.00014246,2]
[395068122,1764397862840,-500.0,0.00014246,2]
[395068123,1764397862850,-1104.96,0.00014246,2]
[395068124,1764397862859,-500.0,0.00014246,2]
[395068125,1764397862868,-500.0,0.00014246,2]
[395068126,1764397862879,-6559.69,0.00014246,2]
[395068127,1764397862888,-500.0,0.00014246,2]
[395068128,1764397862898,-500.0,0.00014246,2]
[395068129,1764397862907,-939.05,0.00014246,2]
[395068130,1764397862917,-500.0,0.00014246,2]
[395068131,1764397862928,-500.0,0.00014246,2]
[395068132,1764397862938,-1377.4,0.00014246,2]
[395068133,1764397862948,-4642.22,0.00014246,2]
[395068134,1764397862958,-500.0,0.00014246,2]
[395068135,1764397862968,-1099.3,0.00014246,2]
[395068136,1764397862977,-5888.0,0.00014246,2]
[395068137,1764397862987,-500.0,0.00014247,2]
[395068138,1764397862996,-1000.0,0.00014247,2]
[395068139,1764397863005,-1000.0,0.00014247,2]
[395068140,1764397863015,-1000.0,0.00014247,2]
[395068141,1764397863024,-1000.0,0.00014247,2]
[395068142,1764397863033,-1000.0,0.00014247,2]
[395068143,1764397863042,-1000.0,0.00014247,2]
[395068144,1764397863051,-1000.0,0.00014247,2]
[395068145,1764397863060,-1000.0,0.00014247,2]
[395068146,1764397863069,-1000.0,0.00014247,2]
[395068147,1764397863078,-1000.0,0.00014247,2]
[395068148,1764397863087,-1000.0,0.00014247,2]
[395068149,1764397863096,-1000.0,0.00014247,2]
[395068150,1764397863106,-1000.0,0.00014247,2]
[395068151,1764397863117,-1000.0,0.00014247,2]
[395068152,1764397863128,-1000.0,0.00014247,2]
[395068153,1764397863137,-1000.0,0.00014247,2]
[395068154,1764397863147,-1000.0,0.00014247,2]
[395068155,1764397863156,-1000.0,0.00014247,2]
[395068156,1764397863165,-1000.0,0.00014247,2]
[395068157,1764397863176,-5888.0,0.00014252,2]
[395068158,1764397863185,-5888.0,0.00014258,2]
[395068159,1764397863194,-301.6770173,0.00014324,2]
[395068160,1764397863204,-301.6770173,0.00014324,2]
[395068161,1764397863214,-301.6770173,0.00014324,2]
[395068162,1764397863228,-177.0,0.00014365,2]
[395068163,1764397863237,-1624.07339953,0.00014368,2]
[395068164,1764397863247,-1500.0,0.00014368,2]
[395068165,1764397863256,-1500.0,0.00014368,2]
[395068166,1764397863266,-1500.0,0.00014368,2]
[395068167,1764397863275,-1500.0,0.00014368,2]
[395068168,1764397863286,-217.15233878,0.00014384,2]
[395068169,1764397863295,-666.0,0.00014384,2]
[395068170,1764397863306,-971.4662804,0.0001448,2]
[395068171,1764397863316,-11669.0043482,0.0001448,2]
[395068172,1764397863326,-500.0,0.0001452,2]
[395068173,1764397863335,-500.0,0.0001452,2]
[395068174,1764397863344,-500.0,0.0001452,2]
[395068175,1764397863354,-500.0,0.0001452,2]
[395068176,1764397863363,-500.0,0.0001452,2]
[395068177,1764397863372,-500.0,0.0001452,2]
[395068178,1764397863382,-500.0,0.0001452,2]
[395068179,1764397863392,-500.0,0.0001452,2]
[395068180,1764397863402,-766.13,0.0001452,2]
[395068181,1764397863411,-556.64,0.0001452,2]
[395068182,1764397863420,-500.0,0.0001452,2]
[395068183,1764397863430,-500.0,0.0001452,2]
[395068184,1764397863440,-834.94,0.0001452,2]
[395068185,1764397863450,-500.0,0.0001452,2]
[395068186,1764397863459,-500.0,0.0001452,2]
[395068187,1764397863469,-500.0,0.0001452,2]
[395068188,1764397863479,-823.76,0.0001452,2]
[395068189,1764397863488,-500.0,0.0001452,2]
[395068190,1764397863498,-500.0,0.0001452,2]
[395068191,1764397863508,-500.0,0.0001452,2]
[395068192,1764397863517,-500.0,0.0001452,2]
[395068193,1764397863527,-500.0,0.0001452,2]
[395068194,1764397863536,-500.0,0.0001452,2]
[395068195,1764397863703,-500.0,0.0001452,2]
[395068196,1764397863713,-500.0,0.0001452,2]
[395068197,1764397863723,-598.61,0.0001452,2]
[395068198,1764397863732,-500.0,0.0001452,2]
[395068199,1764397863742,-500.0,0.0001452,2]
[395068200,1764397863752,-642.5109676,0.0001452,2]
[395068201,1764397863761,-500.0,0.0001452,2]
[395068202,1764397863770,-500.0,0.0001452,2]
[395068203,1764397863780,-903.4,0.0001452,2]
[395068204,1764397863789,-500.0,0.0001452,2]
[395068205,1764397863799,-500.0,0.0001452,2]
[395068206,1764397863809,-500.0,0.0001452,2]
[395068207,1764397863818,-500.0,0.0001452,2]
[395068208,1764397863828,-500.0,0.0001452,2]
[395068209,1764397863838,-500.0,0.0001452,2]
[395068210,1764397863847,-500.0,0.0001452,2]
[395068211,1764397863856,-500.0,0.0001452,2]
[395068212,1764397863865,-500.0,0.0001452,2]
[395068213,1764397863875,-500.0,0.0001452,2]
[395068214,1764397863884,-745.8,0.0001452,2]
[395068215,1764397863893,-500.0,0.0001452,2]
[395068216,1764397863903,-500.0,0.0001452,2]
[395068217,1764397863912,-500.0,0.0001452,2]
[395068218,1764397863922,-500.0,0.0001452,2]
[395068219,1764397863931,-500.0,0.0001452,2]
[395068220,1764397863940,-500.0,0.0001452,2]
[395068221,1764397863950,-500.0,0.0001452,2]
[395068222,1764397863959,-500.0,0.0001452,2]
[395068223,1764397863968,-500.0,0.0001452,2]
[395068224,1764397863977,-587.4,0.0001452,2]
[395068225,1764397863986,-500.0,0.0001452,2]
[395068226,1764397863996,-500.0,0.0001452,2]
[395068227,1764397864004,-738.75,0.0001452,2]
[395068228,1764397864014,-500.0,0.0001452,2]
[395068229,1764397864023,-486.02317291,0.0001452,2]
[395068230,1764397864032,-500.0,0.0001452,2]
[395068231,1764397864041,-500.0,0.0001452,2]
[395068232,1764397864050,-596.16,0.0001452,2]
[395068233,1764397864059,-500.0,0.0001452,2]
[395068234,1764397864068,-500.0,0.0001452,2]
[395068235,1764397864077,-574.22,0.0001452,2]
[395068236,1764397864086,-500.0,0.0001452,2]
[395068237,1764397864096,-500.0,0.0001452,2]
[395068238,1764397864105,-500.0,0.0001452,2]
[395068239,1764397864114,-581.68,0.0001452,2]
[395068240,1764397864123,-500.0,0.0001452,2]
[395068241,1764397864132,-556.95,0.0001452,2]
[395068242,1764397864141,-564.08,0.0001452,2]
[395068243,1764397864151,-540.78,0.0001452,2]
[395068244,1764397864160,-500.0,0.0001452,2]
[395068245,1764397864170,-689.25,0.0001452,2]
[395068246,1764397864179,-500.0,0.0001452,2]
[395068247,1764397864188,-193.9404987,0.0001452,2]
[395068248,1764397864198,-500.0,0.0001452,2]
[395068249,1764397864207,-848.59,0.0001452,2]
[395068250,1764397864216,-500.0,0.0001452,2]
[395068251,1764397864227,-1164.8,0.0001452,2]
[395068252,1764397864241,-500.0,0.0001452,2]
[395068253,1764397864251,-500.0,0.0001452,2]
[395068254,1764397864260,-500.0,0.0001452,2]
[395068255,1764397864271,-1236.56,0.0001452,2]
[395068256,1764397864281,-500.0,0.0001452,2]
[395068257,1764397864291,-5933.31,0.0001452,2]
[395068258,1764397864301,-3090.35,0.0001452,2]
[395068259,1764397864311,-500.0,0.0001452,2]
[395068260,1764397864321,-529.77,0.0001452,2]
[395068261,1764397864330,-500.0,0.0001452,2]
[395068262,1764397864340,-1214.71,0.0001452,2]
[395068263,1764397864350,-500.0,0.0001452,2]
[395068264,1764397864359,-652.25,0.0001452,2]
[395068265,1764397864370,-1897.31,0.0001452,2]
[395068266,1764397864379,-500.0,0.0001452,2]
[395068267,1764397864389,-990.53,0.0001452,2]
[395068268,1764397864399,-500.0,0.0001452,2]
[395068269,1764397864409,-500.0,0.0001452,2]
[395068270,1764397864418,-500.0,0.0001452,2]
[395068271,1764397864428,-500.0,0.0001452,2]
[395068272,1764397864437,-778.35,0.0001452,2]
[395068273,1764397864447,-596.51812696,0.0001452,2]
[395068274,1764397864457,-1618.79,0.0001452,2]
[395068275,1764397864467,-500.0,0.0001452,2]
[395068276,1764397864477,-592.68,0.0001452,2]
[395068277,1764397864487,-899.31,0.0001452,2]
[395068278,1764397864496,-940.19,0.0001452,2]
[395068279,1764397864506,-500.0,0.0001452,2]
[395068280,1764397864516,-500.0,0.0001452,2]
[395068281,1764397864527,-500.0,0.0001452,2]
[395068282,1764397864536,-1484.2,0.0001452,2]
[395068283,1764397864546,-500.0,0.0001452,2]
[395068284,1764397864556,-596.04,0.0001452,2]
[395068285,1764397864566,-2800.32,0.0001452,2]
[395068286,1764397864576,-500.0,0.0001452,2]
[395068287,1764397864586,-500.0,0.0001452,2]
[395068288,1764397864596,-500.0,0.0001452,2]
[395068289,1764397864606,-500.0,0.0001452,2]
[395068290,1764397864616,-500.0,0.0001452,2]
[395068291,1764397864626,-552.21,0.0001452,2]
[395068292,1764397864636,-500.0,0.0001452,2]
[395068293,1764397864646,-500.0,0.0001452,2]
[395068294,1764397864659,-1559.52,0.0001452,2]
[395068295,1764397864674,-542.19708407,0.0001452,2]
[395068296,1764397864684,-522.61,0.0001452,2]
[395068297,1764397864694,-797.75,0.0001452,2]
[395068298,1764397864704,-513.48,0.0001452,2]
[395068299,1764397864714,-526.07,0.0001452,2]
[395068300,1764397864730,-500.0,0.0001452,2]
[395068301,1764397864739,-500.0,0.0001452,2]
[395068302,1764397864748,-1335.25,0.0001452,2]
[395068303,1764397864758,-1099.74,0.0001452,2]
[395068304,1764397864768,-3619.92,0.0001452,2]
[395068305,1764397864784,-500.0,0.0001452,2]
[395068306,1764397864793,-500.0,0.0001452,2]
[395068307,1764397864803,-500.0,0.0001452,2]
[395068308,1764397864813,-2405.03,0.0001452,2]
[395068309,1764397864822,-500.0,0.0001452,2]
[395068310,1764397864832,-500.0,0.0001452,2]
[395068311,1764397864841,-7651.96,0.0001452,2]
[395068312,1764397864850,-500.0,0.0001452,2]
[395068313,1764397864860,-500.0,0.0001452,2]
[395068314,1764397864869,-500.0,0.0001452,2]
[395068315,1764397864879,-649.66,0.0001452,2]
[395068316,1764397864889,-1908.06,0.0001452,2]
[395068317,1764397864898,-500.0,0.0001452,2]
[395068318,1764397864907,-325.57317644,0.0001452,2]
[395068319,1764397864918,-500.0,0.0001452,2]
[395068320,1764397864927,-662.97,0.0001452,2]
[395068321,1764397864937,-1158.74,0.0001452,2]
[395068322,1764397864946,-500.0,0.0001452,2]
[395068323,1764397864955,-1514.35,0.0001452,2]
[395068324,1764397864964,-642.19,0.0001452,2]
[395068325,1764397864974,-500.0,0.0001452,2]
[395068326,1764397864984,-541.49214117,0.0001452,2]
[395068327,1764397864993,-500.0,0.0001452,2]
[395068328,1764397865002,-500.0,0.0001452,2]
[395068329,1764397865011,-3678.73,0.0001452,2]
[395068330,1764397865021,-500.0,0.0001452,2]
[395068331,1764397865030,-6008.98,0.0001452,2]
[395068332,1764397865039,-514.33,0.0001452,2]
[395068333,1764397865049,-776.58,0.0001452,2]
[395068334,1764397865058,-500.0,0.0001452,2]
[395068335,1764397865067,-500.0,0.0001452,2]
[395068336,1764397865077,-500.0,0.0001452,2]
[395068337,1764397865086,-3777.58,0.0001452,2]
[395068338,1764397865095,-980.94,0.0001452,2]
[395068339,1764397865105,-500.0,0.0001452,2]
[395068340,1764397865114,-500.0,0.0001452,2]
[395068341,1764397865123,-500.0,0.0001452,2]
[395068342,1764397865133,-907.07,0.0001452,2]
[395068343,1764397865142,-500.0,0.0001452,2]
[395068344,1764397865151,-1083.76,0.0001452,2]
[395068345,1764397865161,-604.62,0.0001452,2]
[395068346,1764397865170,-500.0,0.0001452,2]
[395068347,1764397865180,-500.0,0.0001452,2]
[395068348,1764397865189,-1104.96,0.0001452,2]
[395068349,1764397865198,-500.0,0.0001452,2]
[395068350,1764397865207,-500.0,0.0001452,2]
[395068351,1764397865217,-6559.69,0.0001452,2]
[395068352,1764397865229,-500.0,0.0001452,2]
[395068353,1764397865239,-500.0,0.0001452,2]
[395068354,1764397865248,-939.05,0.0001452,2]
[395068355,1764397865258,-500.0,0.0001452,2]
[395068356,1764397865268,-1377.4,0.0001452,2]
[395068357,1764397865278,-500.0,0.0001452,2]
[395068358,1764397865287,-4642.22,0.0001452,2]
[395068359,1764397865297,-500.0,0.0001452,2]
[395068360,1764397865307,-1099.3,0.0001452,2]
[395068361,1764397865317,-500.0,0.00014521,2]
[395068362,1764397865326,-160.0,0.00014552,2]
[395068363,1764397865336,-500.0,0.00014579,2]
[395068364,1764397865345,-500.0,0.00014685,2]
[395068365,1764397865355,-600.0,0.00014713,2]
[395068366,1764397865364,-900.0,0.00014768,2]
[395068367,1764397865373,-500.0,0.00014794,2]
[395068368,1764397865382,-500.0,0.00014794,2]
[395068369,1764397865392,-500.0,0.00014794,2]
[395068370,1764397865401,-500.0,0.00014794,2]
[395068371,1764397865410,-500.0,0.00014794,2]
[395068372,1764397865420,-500.0,0.00014794,2]
[395068373,1764397865429,-500.0,0.00014794,2]
[395068374,1764397865438,-500.0,0.00014794,2]
[395068375,1764397865447,-766.13,0.00014794,2]
[395068376,1764397865457,-556.64,0.00014794,2]
[395068377,1764397865466,-500.0,0.00014794,2]
[395068378,1764397865475,-500.0,0.00014794,2]
[395068379,1764397865484,-834.94,0.00014794,2]
[395068380,1764397865494,-494.45058172,0.00014794,2]
[395068381,1764397865504,-500.0,0.00014794,2]
[395068382,1764397865513,-500.0,0.00014794,2]
[395068383,1764397865523,-823.76,0.00014794,2]
[395068384,1764397865533,-500.0,0.00014794,2]
[395068385,1764397865542,-500.0,0.00014794,2]
[395068386,1764397865551,-500.0,0.00014794,2]
[395068387,1764397865560,-500.0,0.00014794,2]
[395068388,1764397865570,-500.0,0.00014794,2]
[395068389,1764397865583,-362.04,0.00014794,2]
[395068390,1764397865592,-500.0,0.00014794,2]
[395068391,1764397865602,-450.69511991,0.00014794,2]
[395068392,1764397865611,-598.61,0.00014794,2]
[395068393,1764397865620,-500.0,0.00014794,2]
[395068394,1764397865630,-500.0,0.00014794,2]
[395068395,1764397865640,-500.0,0.00014794,2]
[395068396,1764397865652,-334.63178309,0.00014794,2]
[395068397,1764397865662,-903.4,0.00014794,2]
[395068398,1764397865671,-500.0,0.00014794,2]
[395068399,1764397865681,-500.0,0.00014794,2]
[395068400,1764397865691,-500.0,0.00014794,2]
[395068401,1764397865701,-500.0,0.00014794,2]
[395068402,1764397865711,-500.0,0.00014794,2]
[395068403,1764397865720,-516.23096941,0.00014794,2]
[395068404,1764397865730,-500.0,0.00014794,2]
[395068405,1764397865740,-500.0,0.00014794,2]
[395068406,1764397865750,-500.0,0.00014794,2]
[395068407,1764397865759,-500.0,0.00014794,2]
[395068408,1764397865769,-745.8,0.00014794,2]
[395068409,1764397865778,-500.0,0.00014794,2]
[395068410,1764397865788,-253.7307809,0.00014794,2]
[395068411,1764397865797,-500.0,0.00014794,2]
[395068412,1764397865806,-500.0,0.00014794,2]
[395068413,1764397865816,-424.9149897,0.00014794,2]
[395068414,1764397865825,-500.0,0.00014794,2]
[395068415,1764397865835,-500.0,0.00014794,2]
[395068416,1764397865844,-500.0,0.00014794,2]
[395068417,1764397865853,-500.0,0.00014794,2]
[395068418,1764397865862,-500.0,0.00014794,2]
[395068419,1764397865872,-587.4,0.00014794,2]
[395068420,1764397865881,-500.0,0.00014794,2]
[395068421,1764397865891,-500.0,0.00014794,2]
[395068422,1764397865900,-738.75,0.00014794,2]
[395068423,1764397865909,-500.0,0.00014794,2]
[395068424,1764397865919,-500.0,0.00014794,2]
[395068425,1764397865928,-500.0,0.00014794,2]
[395068426,1764397865937,-596.16,0.00014794,2]
[395068427,1764397865947,-500.0,0.00014794,2]
[395068428,1764397865956,-500.0,0.00014794,2]
[395068429,1764397865965,-574.22,0.00014794,2]
[395068430,1764397865975,-500.0,0.00014794,2]
[395068431,1764397865984,-500.0,0.00014794,2]
[395068432,1764397865993,-581.68,0.00014794,2]
[395068433,1764397866003,-500.0,0.00014794,2]
[395068434,1764397866012,-500.0,0.00014794,2]
[395068435,1764397866021,-556.95,0.00014794,2]
[395068436,1764397866030,-564.08,0.00014794,2]
[395068437,1764397866039,-540.78,0.00014794,2]
[395068438,1764397866048,-500.0,0.00014794,2]
[395068439,1764397866057,-689.25,0.00014794,2]
[395068440,1764397866067,-500.0,0.00014794,2]
[395068441,1764397866077,-500.0,0.00014794,2]
[395068442,1764397866147,-848.59,0.00014794,2]
[395068443,1764397866156,-1164.8,0.00014794,2]
[395068444,1764397866165,-500.0,0.00014794,2]
[395068445,1764397866174,-500.0,0.00014794,2]
[395068446,1764397866183,-500.0,0.00014794,2]
[395068447,1764397866192,-500.0,0.00014794,2]
[395068448,1764397866201,-1236.56,0.00014794,2]
[395068449,1764397866210,-500.0,0.00014794,2]
[395068450,1764397866219,-5933.31,0.00014794,2]
[395068451,1764397866233,-3090.35,0.00014794,2]
[395068452,1764397866242,-500.0,0.00014794,2]
[395068453,1764397866251,-529.77,0.00014794,2]
[395068454,1764397866260,-500.0,0.00014794,2]
[395068455,1764397866270,-1214.71,0.00014794,2]
[395068456,1764397866279,-500.0,0.00014794,2]
[395068457,1764397866288,-652.25,0.00014794,2]
[395068458,1764397866297,-1897.31,0.00014794,2]
[395068459,1764397866307,-500.0,0.00014794,2]
[395068460,1764397866316,-990.53,0.00014794,2]
[395068461,1764397866325,-509.5532646,0.00014794,2]
[395068462,1764397866334,-500.0,0.00014794,2]
[395068463,1764397866343,-500.0,0.00014794,2]
[395068464,1764397866353,-500.0,0.00014794,2]
[395068465,1764397866362,-778.35,0.00014794,2]
[395068466,1764397866371,-1618.79,0.00014794,2]
[395068467,1764397866381,-500.0,0.00014794,2]
[395068468,1764397866391,-592.68,0.00014794,2]
[395068469,1764397866400,-899.31,0.00014794,2]
[395068470,1764397866409,-940.19,0.00014794,2]
[395068471,1764397866418,-500.0,0.00014794,2]
[395068472,1764397866428,-500.0,0.00014794,2]
[395068473,1764397866436,-500.0,0.00014794,2]
[395068474,1764397866446,-1484.2,0.00014794,2]
[395068475,1764397866456,-500.0,0.00014794,2]
[395068476,1764397866465,-596.04,0.00014794,2]
[395068477,1764397866474,-2800.32,0.00014794,2]
[395068478,1764397866484,-500.0,0.00014794,2]
[395068479,1764397866493,-500.0,0.00014794,2]
[395068480,1764397866503,-500.0,0.00014794,2]
[395068481,1764397866512,-500.0,0.00014794,2]
[395068482,1764397866521,-500.0,0.00014794,2]
[395068483,1764397866531,-552.21,0.00014794,2]
[395068484,1764397866540,-500.0,0.00014794,2]
[395068485,1764397866549,-1559.52,0.00014794,2]